fUST/lending_fUST_20250901
["ID","MTS","AMOUNT","RATE_DAILY","PERIOD"]
[382536096,1756659060539,-480.0,0.00018346,2]
[382536097,1756659060549,-480.0,0.00018346,2]
[382536098,1756659060559,-487.67,0.00018346,2]
[382536099,1756659060569,-480.0,0.00018346,2]
[382536100,1756659060578,-799.97,0.00018346,2]
[382536101,1756659060587,-480.0,0.00018346,2]
[382536102,1756659060597,-480.0,0.00018346,2]
[382536103,1756659060606,-1064.12,0.00018346,2]
[382536104,1756659060615,-594.27,0.00018346,2]
[382536105,1756659060625,-1311.31,0.00018346,2]
[382536106,1756659060634,-480.0,0.00018346,2]
[382536107,1756659060643,-480.0,0.00018346,2]
[382536108,1756659060652,-974.03,0.00018346,2]
[382536109,1756659060662,-480.0,0.00018346,2]
[382536110,1756659060671,-563.46,0.00018346,2]
[382536111,1756659060681,-1291.38,0.00018346,2]
[382536112,1756659060691,-972.17,0.00018346,2]
[382536113,1756659060702,-1286.62,0.00018346,2]
[382536114,1756659060711,-480.0,0.00018346,2]
[382536115,1756659060721,-480.0,0.00018346,2]
[382536116,1756659060731,-491.87,0.00018346,2]
[382536117,1756659060741,-480.0,0.00018346,2]
[382536118,1756659060751,-646.93,0.00018346,2]
[382536119,1756659060760,-534.7,0.00018346,2]
[382536120,1756659060770,-674.34,0.00018346,2]
[382536121,1756659060780,-480.0,0.00018346,2]
[382536122,1756659060791,-609.02,0.00018346,2]
[382536123,1756659060801,-7296.12,0.00018346,2]
[382536124,1756659060812,-487.08,0.00018346,2]
[382536125,1756659060822,-606.71,0.00018346,2]
[382536126,1756659060832,-892.26,0.00018346,2]
[382536127,1756659060842,-539.51,0.00018346,2]
[382536128,1756659060853,-478.17347262,0.00018346,2]
[382536129,1756659060863,-480.0,0.00018346,2]
[382536130,1756659060872,-480.0,0.00018346,2]
[382536131,1756659060883,-697.89,0.00018346,2]
[382536132,1756659060893,-480.0,0.00018346,2]
[382536133,1756659060903,-4403.45,0.00018346,2]
[382536134,1756659060914,-1502.2,0.00018346,2]
[382536135,1756659060924,-1129.95,0.00018346,2]
[382536136,1756659060933,-480.0,0.00018346,2]
[382536137,1756659060943,-480.0,0.00018346,2]
[382536138,1756659060953,-480.0,0.00018346,2]
[382536139,1756659060962,-480.0,0.00018346,2]
[382536140,1756659060972,-641.62,0.00018346,2]
[382536141,1756659060983,-699.68,0.00018346,2]
[382536142,1756659060992,-894.98,0.00018346,2]
[382536143,1756659061002,-1490.82,0.00018346,2]
[382536144,1756659061011,-480.0,0.00018346,2]
[382536145,1756659061021,-1427.93,0.00018346,2]
[382536146,1756659061030,-553.1,0.00018346,2]
[382536147,1756659061040,-480.0,0.00018346,2]
[382536148,1756659061050,-808.96,0.00018346,2]
[382536149,1756659061059,-2669.24,0.00018346,2]
[382536150,1756659061069,-1075.84,0.00018346,2]
[382536151,1756659061079,-480.0,0.00018346,2]
[382536152,1756659061090,-480.0,0.00018346,2]
[382536153,1756659061100,-480.0,0.00018346,2]
[382536154,1756659061111,-872.18,0.00018346,2]
[382536155,1756659061120,-480.0,0.00018346,2]
[382536156,1756659061130,-480.0,0.00018346,2]
[382536157,1756659061139,-1035.54,0.00018346,2]
[382536158,1756659061150,-480.0,0.00018346,2]
[382536159,1756659061160,-684.5,0.00018346,2]
[382536160,1756659061170,-649.67,0.00018346,2]
[382536161,1756659061179,-480.0,0.00018346,2]
[382536162,1756659061190,-510.6,0.00018346,2]
[382536163,1756659061201,-1160.87,0.00018346,2]
[382536164,1756659061211,-728.63,0.00018346,2]
[382536165,1756659061222,-480.0,0.00018346,2]
[382536166,1756659061231,-703.71,0.00018346,2]
[382536167,1756659061243,-1192.27,0.00018346,2]
[382536168,1756659061253,-2321.06,0.00018346,2]
[382536169,1756659061263,-601.2,0.00018346,2]
[382536170,1756659061272,-1549.31,0.00018346,2]
[382536171,1756659061282,-480.0,0.00018346,2]
[382536172,1756659061292,-1422.9,0.00018346,2]
[382536173,1756659061302,-656.06,0.00018346,2]
[382536174,1756659061312,-480.0,0.00018346,2]
[382536175,1756659061322,-525.66,0.00018346,2]
[382536176,1756659061332,-480.0,0.00018346,2]
[382536177,1756659061342,-751.19,0.00018346,2]
[382536178,1756659061352,-480.0,0.00018346,2]
[382536179,1756659061362,-6095.61,0.00018346,2]
[382536180,1756659061372,-1172.56,0.00018346,2]
[382536181,1756659061382,-484.23,0.00018346,2]
[382536182,1756659061391,-480.0,0.00018346,2]
[382536183,1756659061401,-908.82,0.00018346,2]
[382536184,1756659061411,-1298.95,0.00018346,2]
[382536185,1756659061422,-532.97,0.00018346,2]
[382536186,1756659061431,-647.55,0.00018346,2]
[382536187,1756659061444,-1627.56,0.00018346,2]
[382536188,1756659061454,-902.2,0.00018346,2]
[382536189,1756659061465,-480.0,0.00018346,2]
[382536190,1756659061475,-480.0,0.00018346,2]
[382536191,1756659061485,-480.0,0.00018346,2]
[382536192,1756659061496,-2903.5,0.00018346,2]
[382536193,1756659061505,-504.59,0.00018346,2]
[382536194,1756659061516,-637.96,0.00018346,2]
[382536195,1756659061526,-480.0,0.00018346,2]
[382536196,1756659061536,-1434.82,0.00018346,2]
[382536197,1756659061546,-480.0,0.00018346,2]
[382536198,1756659061556,-1106.49,0.00018346,2]
[382536199,1756659061614,-863.64,0.00018346,2]
[382536200,1756659061625,-480.0,0.00018346,2]
[382536201,1756659061635,-480.0,0.00018346,2]
[382536202,1756659061645,-1237.46,0.00018346,2]
[382536203,1756659061654,-669.06,0.00018346,2]
[382536204,1756659061664,-833.88,0.00018346,2]
[382536205,1756659061674,-480.0,0.00018346,2]
[382536206,1756659061683,-210.59940042,0.00018346,2]
[382536207,1756659061692,-899.37,0.00018346,2]
[382536208,1756659061702,-571.25,0.00018346,2]
[382536209,1756659061711,-500.0,0.00018347,2]
[382536210,1756659061721,-480.0,0.00018347,2]
[382536211,1756659061730,-480.0,0.00018347,2]
[382536212,1756659061740,-480.0,0.00018347,2]
[382536213,1756659061750,-959.39,0.00018347,2]
[382536214,1756659061759,-480.0,0.00018347,2]
[382536215,1756659061769,-480.0,0.00018347,2]
[382536216,1756659061778,-480.0,0.00018347,2]
[382536217,1756659061787,-480.0,0.00018347,2]
[382536218,1756659061799,-535.44103704,0.00018347,2]
[382536219,1756659061808,-480.0,0.00018347,2]
[382536220,1756659061818,-480.0,0.00018347,2]
[382536221,1756659061827,-480.0,0.00018347,2]
[382536222,1756659061836,-480.0,0.00018347,2]
[382536223,1756659061848,-480.0,0.00018347,2]
[382536224,1756659061859,-491.53,0.00018347,2]
[382536225,1756659061869,-480.0,0.00018347,2]
[382536226,1756659061879,-480.0,0.00018347,2]
[382536227,1756659061888,-480.0,0.00018347,2]
[382536228,1756659061898,-525.84,0.00018347,2]
[382536229,1756659061908,-480.0,0.00018347,2]
[382536230,1756659061918,-491.55237605,0.00018347,2]
[382536231,1756659061929,-480.0,0.00018347,2]
[382536232,1756659061938,-480.0,0.00018347,2]
[382536233,1756659061948,-702.91,0.00018347,2]
[382536234,1756659061957,-482.76,0.00018347,2]
[382536235,1756659061967,-480.0,0.00018347,2]
[382536236,1756659061976,-480.0,0.00018347,2]
[382536237,1756659061986,-480.0,0.00018347,2]
[382536238,1756659061995,-548.49,0.00018347,2]
[382536239,1756659062005,-591.87,0.00018347,2]
[382536240,1756659062016,-742.83,0.00018347,2]
[382536241,1756659062026,-480.0,0.00018347,2]
[382536242,1756659062036,-480.0,0.00018347,2]
[382536243,1756659062046,-480.0,0.00018347,2]
[382536244,1756659062056,-554.89,0.00018347,2]
[382536245,1756659062067,-480.0,0.00018347,2]
[382536246,1756659062076,-480.0,0.00018347,2]
[382536247,1756659062087,-1349.91,0.00018347,2]
[382536248,1756659062096,-480.0,0.00018347,2]
[382536249,1756659062107,-480.0,0.00018347,2]
[382536250,1756659062116,-480.0,0.00018347,2]
[382536251,1756659062126,-480.0,0.00018347,2]
[382536252,1756659062135,-1120.3,0.00018347,2]
[382536253,1756659062144,-529.75,0.00018347,2]
[382536254,1756659062154,-396.2415172,0.00018347,2]
[382536255,1756659062164,-933.06,0.00018347,2]
[382536256,1756659062173,-480.0,0.00018347,2]
[382536257,1756659062183,-480.0,0.00018347,2]
[382536258,1756659062192,-583.31,0.00018347,2]
[382536259,1756659062202,-480.0,0.00018347,2]
[382536260,1756659062212,-480.0,0.00018347,2]
[382536261,1756659062222,-480.0,0.00018347,2]
[382536262,1756659062232,-494.29,0.00018347,2]
[382536263,1756659062243,-480.0,0.00018347,2]
[382536264,1756659062252,-1120.54,0.00018347,2]
[382536265,1756659062263,-817.85,0.00018347,2]
[382536266,1756659062272,-500.0,0.00018347,2]
[382536267,1756659062282,-1474.41,0.00018347,2]
[382536268,1756659062292,-427.78250325,0.00018347,2]
[382536269,1756659062302,-480.0,0.00018347,2]
[382536270,1756659062311,-969.31,0.00018347,2]
[382536271,1756659062320,-151.0,0.00018347,2]
[382536272,1756659062330,-151.0,0.00018347,2]
[382536273,1756659062340,-480.0,0.00018347,2]
[382536274,1756659062350,-480.0,0.00018347,2]
[382536275,1756659062360,-151.0,0.00018347,2]
[382536276,1756659062369,-1100.39,0.00018347,2]
[382536277,1756659062380,-480.0,0.00018347,2]
[382536278,1756659062389,-1287.82,0.00018347,2]
[382536279,1756659062399,-151.0,0.00018347,2]
[382536280,1756659062408,-480.0,0.00018347,2]
[382536281,1756659062419,-151.0,0.00018347,2]
[382536282,1756659062429,-480.0,0.00018347,2]
[382536283,1756659062439,-480.0,0.00018347,2]
[382536284,1756659062448,-480.0,0.00018347,2]
[382536285,1756659062458,-480.0,0.00018347,2]
[382536286,1756659062467,-480.0,0.00018347,2]
[382536287,1756659062478,-480.0,0.00018347,2]
[382536288,1756659062487,-151.0,0.00018347,2]
[382536289,1756659062499,-480.0,0.00018347,2]
[382536290,1756659062508,-1415.49,0.00018347,2]
[382536291,1756659062519,-151.0,0.00018347,2]
[382536292,1756659062530,-193.694951,0.00018347,2]
[382536293,1756659062540,-480.0,0.00018347,2]
[382536294,1756659062550,-512.52,0.00018347,2]
[382536295,1756659062560,-480.0,0.00018347,2]
[382536296,1756659062570,-480.0,0.00018347,2]
[382536297,1756659062581,-151.0,0.00018347,2]
[382536298,1756659062591,-480.0,0.00018347,2]
[382536299,1756659062601,-480.0,0.00018347,2]
[382536300,1756659062611,-480.0,0.00018347,2]
[382536301,1756659062622,-686.57,0.00018347,2]
[382536302,1756659062631,-659.82,0.00018347,2]
[382536303,1756659062640,-151.0,0.00018347,2]
[382536304,1756659062650,-890.58,0.00018347,2]
[382536305,1756659062660,-663.59,0.00018347,2]
[382536306,1756659062669,-151.0,0.00018347,2]
[382536307,1756659062679,-151.0,0.00018347,2]
[382536308,1756659062691,-585.21,0.00018347,2]
[382536309,1756659062702,-1419.66,0.00018347,2]
[382536310,1756659062712,-480.0,0.00018347,2]
[382536311,1756659062722,-480.0,0.00018347,2]
[382536312,1756659062733,-480.0,0.00018347,2]
[382536313,1756659062743,-594.61,0.00018347,2]
[382536314,1756659062753,-1015.26,0.00018347,2]
[382536315,1756659062763,-480.0,0.00018347,2]
[382536316,1756659062774,-480.0,0.00018347,2]
[382536317,1756659062784,-1319.99,0.00018347,2]
[382536318,1756659062795,-495.26,0.00018347,2]
[382536319,1756659062804,-480.0,0.00018347,2]
[382536320,1756659062816,-480.0,0.00018347,2]
[382536321,1756659062826,-480.0,0.00018347,2]
[382536322,1756659062836,-480.0,0.00018347,2]
[382536323,1756659062846,-1124.57,0.00018347,2]
[382536324,1756659062855,-1318.53,0.00018347,2]
[382536325,1756659062866,-1080.55,0.00018347,2]
[382536326,1756659062875,-644.79,0.00018347,2]
[382536327,1756659062886,-480.0,0.00018347,2]
[382536328,1756659062895,-480.0,0.00018347,2]
[382536329,1756659062906,-1134.89,0.00018347,2]
[382536330,1756659062915,-613.9538047,0.00018347,2]
[382536331,1756659062925,-480.0,0.00018347,2]
[382536332,1756659062935,-480.0,0.00018347,2]
[382536333,1756659062945,-480.0,0.00018347,2]
[382536334,1756659062955,-480.0,0.00018347,2]
[382536335,1756659062966,-1271.12,0.00018347,2]
[382536336,1756659062976,-837.88,0.00018347,2]
[382536337,1756659062986,-480.0,0.00018347,2]
[382536338,1756659062996,-1105.46,0.00018347,2]
[382536339,1756659063007,-963.33,0.00018347,2]
[382536340,1756659063017,-613.27,0.00018347,2]
[382536341,1756659063027,-752.24,0.00018347,2]
[382536342,1756659063037,-480.0,0.00018347,2]
[382536343,1756659063047,-480.0,0.00018347,2]
[382536344,1756659063057,-1399.16,0.00018347,2]
[382536345,1756659063067,-480.0,0.00018347,2]
[382536346,1756659063077,-480.0,0.00018347,2]
[382536347,1756659063087,-480.0,0.00018347,2]
[382536348,1756659063097,-480.0,0.00018347,2]
[382536349,1756659063108,-480.0,0.00018347,2]
[382536350,1756659063118,-839.11,0.00018347,2]
[382536351,1756659063129,-648.71,0.00018347,2]
[382536352,1756659063139,-487.07,0.00018347,2]
[382536353,1756659063149,-663.73,0.00018347,2]
[382536354,1756659063159,-1115.72,0.00018347,2]
[382536355,1756659063168,-480.0,0.00018347,2]
[382536356,1756659063178,-779.22,0.00018347,2]
[382536357,1756659063190,-1375.71,0.00018347,2]
[382536358,1756659063200,-480.0,0.00018347,2]
[382536359,1756659063211,-987.25,0.00018347,2]
[382536360,1756659063221,-480.0,0.00018347,2]
[382536361,1756659063231,-480.0,0.00018347,2]
[382536362,1756659063242,-480.0,0.00018347,2]
[382536363,1756659063253,-480.0,0.00018347,2]
[382536364,1756659063263,-696.7,0.00018347,2]
[382536365,1756659063274,-480.0,0.00018347,2]
[382536366,1756659063284,-653.96,0.00018347,2]
[382536367,1756659063295,-480.0,0.00018347,2]
[382536368,1756659063306,-887.24,0.00018347,2]
[382536369,1756659063316,-480.0,0.00018347,2]
[382536370,1756659063327,-553.78,0.00018347,2]
[382536371,1756659063337,-480.0,0.00018347,2]
[382536372,1756659063347,-480.0,0.00018347,2]
[382536373,1756659063358,-480.0,0.00018347,2]
[382536374,1756659063368,-480.0,0.00018347,2]
[382536375,1756659063378,-807.57,0.00018347,2]
[382536376,1756659063389,-1988.84,0.00018347,2]
[382536377,1756659063400,-963.8,0.00018347,2]
[382536378,1756659063410,-480.96,0.00018347,2]
[382536379,1756659063420,-480.0,0.00018347,2]
[382536380,1756659063430,-1698.69,0.00018347,2]
[382536381,1756659063440,-480.0,0.00018347,2]
[382536382,1756659063450,-480.0,0.00018347,2]
[382536383,1756659063460,-1182.42,0.00018347,2]
[382536384,1756659063469,-480.0,0.00018347,2]
[382536385,1756659063479,-480.0,0.00018347,2]
[382536386,1756659063488,-480.0,0.00018347,2]
[382536387,1756659063499,-480.0,0.00018347,2]
[382536388,1756659063509,-524.45,0.00018347,2]
[382536389,1756659063519,-522.28,0.00018347,2]
[382536390,1756659063529,-480.0,0.00018347,2]
[382536391,1756659063539,-480.0,0.00018347,2]
[382536392,1756659063550,-480.0,0.00018347,2]
[382536393,1756659063560,-549.9,0.00018347,2]
[382536394,1756659063570,-618.67,0.00018347,2]
[382536395,1756659063579,-510.09,0.00018347,2]
[382536396,1756659063590,-682.3,0.00018347,2]
[382536397,1756659063599,-593.76,0.00018347,2]
[382536398,1756659063609,-327.95776458,0.00018347,2]
[382536399,1756659063619,-480.0,0.00018347,2]
[382536400,1756659063629,-480.0,0.00018347,2]
[382536401,1756659063640,-480.0,0.00018347,2]
[382536402,1756659063650,-755.44,0.00018347,2]
[382536403,1756659063659,-1379.26,0.00018347,2]
[382536404,1756659063669,-550.04,0.00018347,2]
[382536405,1756659063679,-480.0,0.00018347,2]
[382536406,1756659063689,-1295.54,0.00018347,2]
[382536407,1756659063699,-779.48,0.00018347,2]
[382536408,1756659063709,-480.0,0.00018347,2]
[382536409,1756659063720,-480.0,0.00018347,2]
[382536410,1756659063729,-480.0,0.00018347,2]
[382536411,1756659063739,-480.0,0.00018347,2]
[382536412,1756659063748,-578.50855936,0.00018347,2]
[382536413,1756659063758,-480.0,0.00018347,2]
[382536414,1756659063769,-480.0,0.00018347,2]
[382536415,1756659063779,-913.44,0.00018347,2]
[382536416,1756659063789,-480.0,0.00018347,2]
[382536417,1756659063801,-557.47,0.00018347,2]
[382536418,1756659063811,-1062.58,0.00018347,2]
[382536419,1756659063821,-664.7,0.00018347,2]
[382536420,1756659063831,-480.0,0.00018347,2]
[382536421,1756659063842,-480.0,0.00018347,2]
[382536422,1756659063856,-151.0,0.00018347,2]
[382536423,1756659063866,-480.0,0.0001835,2]
[382536424,1756659063876,-1208.02,0.0001835,2]
[382536425,1756659063886,-480.0,0.0001835,2]
[382536426,1756659063897,-480.0,0.0001835,2]
[382536427,1756659063908,-480.0,0.0001835,2]
[382536428,1756659063917,-653.05,0.0001835,2]
[382536429,1756659063929,-480.0,0.0001835,2]
[382536430,1756659063939,-480.0,0.0001835,2]
[382536431,1756659063949,-480.0,0.0001835,2]
[382536432,1756659063959,-480.0,0.0001835,2]
[382536433,1756659063969,-548.86,0.0001835,2]
[382536434,1756659063979,-480.0,0.0001835,2]
[382536435,1756659063989,-480.0,0.0001835,2]
[382536436,1756659063999,-704.93,0.0001835,2]
[382536437,1756659064010,-480.0,0.0001835,2]
[382536438,1756659064020,-151.0,0.0001835,2]
[382536439,1756659064030,-554.81,0.0001835,2]
[382536440,1756659064040,-257.29803267,0.0001835,2]
[382536441,1756659064050,-480.0,0.0001835,2]
[382536442,1756659064060,-480.0,0.0001835,2]
[382536443,1756659064070,-913.52,0.0001835,2]
[382536444,1756659064079,-489.19,0.0001835,2]
[382536445,1756659064090,-193.73538634,0.0001835,2]
[382536446,1756659064100,-610.9,0.0001835,2]
[382536447,1756659064110,-480.0,0.0001835,2]
[382536448,1756659064120,-762.93,0.0001835,2]
[382536449,1756659064130,-530.97,0.0001835,2]
[382536450,1756659064140,-480.0,0.0001835,2]
[382536451,1756659064151,-151.0,0.0001835,2]
[382536452,1756659064161,-151.0,0.0001835,2]
[382536453,1756659064171,-151.0,0.0001835,2]
[382536454,1756659064182,-190.444749,0.0001835,2]
[382536455,1756659064192,-190.444749,0.0001835,2]
[382536456,1756659064202,-190.444749,0.0001835,2]
[382536457,1756659064212,-190.444749,0.0001835,2]
[382536458,1756659064222,-151.0,0.0001835,2]
[382536459,1756659064234,-151.0,0.0001835,2]
[382536460,1756659064245,-151.0,0.0001835,2]
[382536461,1756659064254,-151.0,0.0001835,2]
[382536462,1756659064264,-151.0,0.0001835,2]
[382536463,1756659064274,-151.0,0.0001835,2]
[382536464,1756659064284,-151.0,0.0001835,2]
[382536465,1756659064295,-151.0,0.0001835,2]
[382536466,1756659064304,-151.0,0.0001835,2]
[382536467,1756659064314,-151.0,0.00018354,2]
[382536468,1756659064325,-151.0,0.00018354,2]
[382536469,1756659064335,-151.0,0.00018354,2]
[382536470,1756659064346,-151.0,0.00018354,2]
[382536471,1756659064357,-151.0,0.00018354,2]
[382536472,1756659064367,-585.91,0.00018354,2]
[382536473,1756659064377,-4038.37,0.00018354,2]
[382536474,1756659064387,-2456.42,0.00018354,2]
[382536475,1756659064398,-509.24,0.00018354,2]
[382536476,1756659064408,-1226.54,0.00018354,2]
[382536477,1756659064417,-793.22,0.00018354,2]
[382536478,1756659064427,-1549.82,0.00018354,2]
[382536479,1756659064437,-719.76,0.00018354,2]
[382536480,1756659064446,-2151.07513517,0.00018362,2]
[382536481,1756659064456,-1056.70546257,0.00018364,2]
[382536482,1756659064465,-151.0,0.00018364,2]
[382536483,1756659064475,-293.103662,0.00018364,2]
[382536484,1756659064485,-151.0,0.000184,2]
[382536485,1756659064495,-153.097034,0.00018433,10]
[382536486,1756659064506,-155.47799131,0.00018493,2]
[382536487,1756659064515,-151.0,0.000185,2]
[382536488,1756659064526,-168.0,0.00018505,2]
[382536489,1756659064536,-4835.07913508,0.00018512,2]
[382536490,1756659064549,-168.0,0.0001855,2]
[382536491,1756659064559,-153.097034,0.00018556,3]
[382536492,1756659064569,-168.0,0.00018617,2]
[382536493,1756659064579,-151.0,0.0001862,2]
[382536494,1756659064589,-480.0,0.0001862,2]
[382536495,1756659064599,-658.16,0.0001862,2]
[382536496,1756659064609,-578.71,0.0001862,2]
[382536497,1756659064619,-1772.12,0.0001862,2]
[382536498,1756659064629,-991.87,0.0001862,2]
[382536499,1756659064639,-1223.35,0.0001862,2]
[382536500,1756659064649,-1263.34,0.0001862,2]
[382536501,1756659064658,-999.32,0.0001862,2]
[382536502,1756659064668,-596.34,0.0001862,2]
[382536503,1756659064678,-570.43,0.0001862,2]
[382536504,1756659064688,-1219.86,0.0001862,2]
[382536505,1756659064698,-480.0,0.0001862,2]
[382536506,1756659064708,-493.03,0.0001862,2]
[382536507,1756659064717,-480.0,0.0001862,2]
[382536508,1756659064728,-726.34,0.0001862,2]
[382536509,1756659064738,-656.23,0.0001862,2]
[382536510,1756659064748,-404.65764314,0.0001862,2]
[382536511,1756659064758,-902.06,0.0001862,2]
[382536512,1756659064768,-488.15,0.0001862,2]
[382536513,1756659064778,-480.0,0.0001862,2]
[382536514,1756659064787,-480.0,0.0001862,2]
[382536515,1756659064798,-480.0,0.0001862,2]
[382536516,1756659064807,-1094.1,0.0001862,2]
[382536517,1756659064817,-724.91,0.0001862,2]
[382536518,1756659064827,-734.1,0.0001862,2]
[382536519,1756659064837,-480.0,0.0001862,2]
[382536520,1756659064847,-480.0,0.0001862,2]
[382536521,1756659064858,-480.0,0.0001862,2]
[382536522,1756659064867,-592.03,0.0001862,2]
[382536523,1756659064878,-1526.65,0.0001862,2]
[382536524,1756659064889,-635.15,0.0001862,2]
[382536525,1756659064899,-480.0,0.0001862,2]
[382536526,1756659064909,-1595.39,0.0001862,2]
[382536527,1756659064919,-785.27,0.0001862,2]
[382536528,1756659064929,-480.0,0.0001862,2]
[382536529,1756659064939,-746.61,0.0001862,2]
[382536530,1756659064949,-480.0,0.0001862,2]
[382536531,1756659065106,-1249.36,0.0001862,2]
[382536532,1756659065117,-808.76,0.0001862,2]
[382536533,1756659065127,-1205.0,0.0001862,2]
[382536534,1756659065136,-480.0,0.0001862,2]
[382536535,1756659065146,-423.53794407,0.0001862,2]
[382536536,1756659065155,-487.67,0.0001862,2]
[382536537,1756659065165,-480.0,0.0001862,2]
[382536538,1756659065174,-799.97,0.0001862,2]
[382536539,1756659065184,-480.0,0.0001862,2]
[382536540,1756659065193,-480.0,0.0001862,2]
[382536541,1756659065203,-1064.12,0.0001862,2]
[382536542,1756659065213,-594.27,0.0001862,2]
[382536543,1756659065222,-480.0,0.0001862,2]
[382536544,1756659065232,-1311.31,0.0001862,2]
[382536545,1756659065242,-974.03,0.0001862,2]
[382536546,1756659065251,-480.0,0.0001862,2]
[382536547,1756659065261,-563.46,0.0001862,2]
[382536548,1756659065271,-1291.38,0.0001862,2]
[382536549,1756659065281,-972.17,0.0001862,2]
[382536550,1756659065290,-1286.62,0.0001862,2]
[382536551,1756659065300,-480.0,0.0001862,2]
[382536552,1756659065310,-480.0,0.0001862,2]
[382536553,1756659065319,-491.87,0.0001862,2]
[382536554,1756659065329,-646.93,0.0001862,2]
[382536555,1756659065340,-534.7,0.0001862,2]
[382536556,1756659065350,-674.34,0.0001862,2]
[382536557,1756659065359,-480.0,0.0001862,2]
[382536558,1756659065369,-609.02,0.0001862,2]
[382536559,1756659065378,-7296.12,0.0001862,2]
[382536560,1756659065388,-487.08,0.0001862,2]
[382536561,1756659065398,-606.71,0.0001862,2]
[382536562,1756659065408,-892.26,0.0001862,2]
[382536563,1756659065418,-539.51,0.0001862,2]
[382536564,1756659065427,-480.0,0.0001862,2]
[382536565,1756659065437,-480.0,0.0001862,2]
[382536566,1756659065447,-697.89,0.0001862,2]
[382536567,1756659065456,-314.23768306,0.0001862,2]
[382536568,1756659065466,-4403.45,0.0001862,2]
[382536569,1756659065475,-1502.2,0.0001862,2]
[382536570,1756659065485,-1129.95,0.0001862,2]
[382536571,1756659065494,-480.0,0.0001862,2]
[382536572,1756659065504,-480.0,0.0001862,2]
[382536573,1756659065514,-480.0,0.0001862,2]
[382536574,1756659065523,-480.0,0.0001862,2]
[382536575,1756659065533,-641.62,0.0001862,2]
[382536576,1756659065543,-699.68,0.0001862,2]
[382536577,1756659065553,-894.98,0.0001862,2]
[382536578,1756659065562,-1490.82,0.0001862,2]
[382536579,1756659065572,-480.0,0.0001862,2]
[382536580,1756659065583,-1427.93,0.0001862,2]
[382536581,1756659065593,-553.1,0.0001862,2]
[382536582,1756659065602,-480.0,0.0001862,2]
[382536583,1756659065611,-808.96,0.0001862,2]
[382536584,1756659065621,-2669.24,0.0001862,2]
[382536585,1756659065630,-1075.84,0.0001862,2]
[382536586,1756659065640,-480.0,0.0001862,2]
[382536587,1756659065649,-480.0,0.0001862,2]
[382536588,1756659065658,-872.18,0.0001862,2]
[382536589,1756659065668,-480.0,0.0001862,2]
[382536590,1756659065678,-480.0,0.0001862,2]
[382536591,1756659065687,-480.0,0.0001862,2]
[382536592,1756659065697,-1035.54,0.0001862,2]
[382536593,1756659065708,-480.0,0.0001862,2]
[382536594,1756659065717,-684.5,0.0001862,2]
[382536595,1756659065727,-649.67,0.0001862,2]